fUSD/lending_fUSD_20260513
["ID","MTS","AMOUNT","RATE_DAILY","PERIOD"]
[422134448,1778611838000,-500.0,0.00012965,2]
[422134440,1778611838000,-500.0,0.00012965,2]
[422134475,1778611838000,-500.0,0.00012965,2]
[422134492,1778611838000,-500.0,0.00012965,2]
[422134471,1778611838000,-500.0,0.00012965,2]
[422134510,1778611838000,-41.73106089,0.00012965,2]
[422134501,1778611838000,-155.37469411,0.00012965,2]
[422134496,1778611838000,-304.57869347,0.00012965,2]
[422134504,1778611838000,-344.62530589,0.00012965,2]
[422134506,1778611838000,-500.0,0.00012965,2]
[422134499,1778611838000,-195.42130653,0.00012965,2]
[422134518,1778611838000,-500.0,0.00012965,2]
[422134514,1778611838000,-500.0,0.00012965,2]
[422134516,1778611838000,-500.0,0.00012965,2]
[422134535,1778611838000,-5931.50173676,0.00013244,2]
[422134522,1778611838000,-500.0,0.00012965,2]
[422134531,1778611838000,-940.84768687,0.00013244,2]
[422134520,1778611838000,-500.0,0.00012965,2]
[422134524,1778611838000,-378.23768688,0.00012965,2]
[422134537,1778611838000,-1976.09516634,0.00013244,2]
[422134468,1778611838000,-500.0,0.00012965,2]
[422134528,1778611838000,-86.25231313,0.00012965,2]
[422134512,1778611838000,-458.26893911,0.00012965,2]
[422134533,1778611838000,-777.79532155,0.00013244,2]
[422134488,1778611838000,-500.0,0.00012965,2]
[422134508,1778611838000,-500.0,0.00012965,2]
[422134473,1778611838000,-500.0,0.00012965,2]
[422134465,1778611838000,-374.80778487,0.00012965,2]
[422134467,1778611838000,-500.0,0.00012965,2]
[422134469,1778611838000,-500.0,0.00012965,2]
[422134479,1778611838000,-500.0,0.00012965,2]
[422134490,1778611838000,-500.0,0.00012965,2]
[422134526,1778611838000,-413.74768687,0.00012965,2]
[422134477,1778611838000,-500.0,0.00012965,2]
[422134494,1778611838000,-500.0,0.00012965,2]
[422134478,1778611838000,-500.0,0.00012965,2]
[422134480,1778611838000,-500.0,0.00012965,2]
[422134481,1778611838000,-500.0,0.00012965,2]
[422134486,1778611838000,-500.0,0.00012965,2]
[422134483,1778611838000,-500.0,0.00012965,2]
[422134482,1778611838000,-500.0,0.00012965,2]
[422134484,1778611838000,-500.0,0.00012965,2]
[422134782,1778611840000,-152.0,0.0001343,2]
[422134771,1778611840000,-158.52793,0.0001342,2]
[422134769,1778611840000,-158.52793,0.0001342,2]
[422134767,1778611840000,-1040.902296,0.00013366,2]
[422134760,1778611840000,-1040.902296,0.00013366,2]
[422134763,1778611840000,-1040.902296,0.00013366,2]
[422134756,1778611840000,-151.0,0.00013263,2]
[422134785,1778611840000,-1816.0,0.00013432,5]
[422134765,1778611840000,-1040.902296,0.00013366,2]
[422134774,1778611840000,-158.52793,0.0001342,2]
[422134815,1778611840000,-1000.0,0.0001356,2]
[422134789,1778611840000,-500.0,0.00013438,2]
[422134778,1778611840000,-158.52793,0.0001342,2]
[422134776,1778611840000,-158.52793,0.0001342,2]
[422134793,1778611840000,-3418.89799795,0.00013524,2]
[422134795,1778611840000,-2351.0,0.00013534,2]
[422134791,1778611840000,-167.82,0.00013469,2]
[422134797,1778611840000,-151.0,0.00013555,2]
[422134799,1778611840000,-180.03520582,0.0001356,2]
[422134753,1778611840000,-238.57238221,0.0001326,2]
[422134787,1778611840000,-1684.0,0.00013432,5]
[422134758,1778611840000,-223.21,0.00013276,2]
[422134728,1778611840000,-1040.902296,0.00013244,2]
[422134750,1778611840000,-250.82622101,0.0001326,2]
[422134710,1778611840000,-750.94,0.00012835,2]
[422134712,1778611840000,-94419.11087242,0.00013244,2]
[422134714,1778611840000,-151.0,0.00013244,2]
[422134808,1778611840000,-1000.0,0.0001356,2]
[422134716,1778611840000,-3100.9393412,0.00013244,2]
[422134735,1778611840000,-151.0,0.00013244,2]
[422134732,1778611840000,-185.305765,0.00013244,2]
[422134736,1778611840000,-151.0,0.00013244,2]
[422134718,1778611840000,-10001.5649546,0.00013244,2]
[422134755,1778611840000,-150.0,0.0001326,2]
[422134722,1778611840000,-969.588368,0.00013244,2]
[422134738,1778611840000,-3418.89799795,0.00013249,2]
[422134740,1778611840000,-225.6944365,0.0001326,2]
[422134731,1778611840000,-1040.902296,0.00013244,2]
[422134726,1778611840000,-1040.902296,0.00013244,2]
[422134720,1778611840000,-13128.5487941,0.00013244,2]
[422134742,1778611840000,-273.2468497,0.0001326,2]
[422134744,1778611840000,-150.0,0.0001326,2]
[422134746,1778611840000,-270.22226106,0.0001326,2]
[422134748,1778611840000,-248.94301125,0.0001326,2]
[422134724,1778611840000,-1040.902296,0.00013244,2]
[422134813,1778611840000,-1000.0,0.0001356,2]
[422134780,1778611840000,-158.52793,0.0001342,2]
[422134817,1778611840000,-1000.0,0.0001356,2]
[422134859,1778611840000,-500.0,0.00013698,2]
[422134869,1778611840000,-506.67968673,0.00013698,2]
[422134867,1778611840000,-500.0,0.00013698,2]
[422134871,1778611840000,-500.0,0.00013698,2]
[422134873,1778611840000,-500.0,0.00013698,2]
[422134885,1778611840000,-500.0,0.00013698,2]
[422134883,1778611840000,-500.0,0.00013698,2]
[422134887,1778611840000,-500.0,0.00013698,2]
[422134881,1778611840000,-500.0,0.00013698,2]
[422134889,1778611840000,-500.0,0.00013698,2]
[422134892,1778611840000,-500.0,0.00013698,2]
[422134879,1778611840000,-500.0,0.00013698,2]
[422134877,1778611840000,-500.0,0.00013698,2]
[422134895,1778611840000,-500.0,0.00013698,2]
[422134897,1778611840000,-539.16316336,0.00013698,2]
[422134907,1778611840000,-500.0,0.00013698,2]
[422134901,1778611840000,-500.0,0.00013698,2]
[422134905,1778611840000,-500.0,0.00013698,2]
[422134898,1778611840000,-500.0,0.00013698,2]
[422134903,1778611840000,-500.0,0.00013698,2]
[422134811,1778611840000,-1000.0,0.0001356,2]
[422134863,1778611840000,-290.91,0.00013698,2]
[422134855,1778611840000,-500.0,0.00013698,2]
[422134875,1778611840000,-500.0,0.00013698,2]
[422134852,1778611840000,-500.0,0.00013698,2]
[422134802,1778611840000,-1000.0,0.0001356,2]
[422134861,1778611840000,-500.0,0.00013698,2]
[422134806,1778611840000,-1000.0,0.0001356,2]
[422134804,1778611840000,-1000.0,0.0001356,2]
[422134819,1778611840000,-1000.0,0.0001356,2]
[422134821,1778611840000,-1000.0,0.0001356,2]
[422134823,1778611840000,-150.0,0.00013607,2]
[422134828,1778611840000,-150.0,0.0001368,2]
[422134832,1778611840000,-500.0,0.00013698,2]
[422134830,1778611840000,-500.0,0.00013698,2]
[422134826,1778611840000,-150.0,0.0001368,2]
[422134842,1778611840000,-500.0,0.00013698,2]
[422134836,1778611840000,-500.0,0.00013698,2]
[422134840,1778611840000,-500.0,0.00013698,2]
[422134838,1778611840000,-500.0,0.00013698,2]
[422134844,1778611840000,-231.28528028,0.00013698,2]
[422134846,1778611840000,-500.0,0.00013698,2]
[422134850,1778611840000,-500.0,0.00013698,2]
[422134848,1778611840000,-500.0,0.00013698,2]
[422134834,1778611840000,-503.11245035,0.00013698,2]
[422134857,1778611840000,-500.0,0.00013698,2]
[422134865,1778611840000,-500.0,0.00013698,2]
[422134944,1778611841000,-500.0,0.00013698,2]
[422134981,1778611841000,-500.0,0.00013698,2]
[422134970,1778611841000,-500.0,0.00013698,2]
[422134976,1778611841000,-500.0,0.00013698,2]
[422134974,1778611841000,-502.73843506,0.00013698,2]
[422134948,1778611841000,-500.0,0.00013698,2]
[422134966,1778611841000,-500.0,0.00013698,2]
[422134962,1778611841000,-500.0,0.00013698,2]
[422134968,1778611841000,-500.0,0.00013698,2]
[422134950,1778611841000,-369.00573565,0.00013698,2]
[422134964,1778611841000,-500.0,0.00013698,2]
[422134982,1778611841000,-500.0,0.00013698,2]
[422135007,1778611841000,-183.01278284,0.000137,2]
[422134987,1778611841000,-500.0,0.00013698,2]
[422134984,1778611841000,-500.0,0.00013698,2]
[422134988,1778611841000,-382.66914498,0.00013698,2]
[422134990,1778611841000,-151.0,0.00013699,2]
[422134992,1778611841000,-151.0,0.00013699,2]
[422135002,1778611841000,-166.66,0.00013699,2]
[422135004,1778611841000,-1381.06,0.00013699,2]
[422135010,1778611841000,-649.34,0.000137,2]
[422134996,1778611841000,-200.0,0.00013699,2]
[422134994,1778611841000,-151.0,0.00013699,2]
[422135014,1778611841000,-2267.0,0.0001373,5]
[422134945,1778611841000,-500.0,0.00013698,2]
[422134979,1778611841000,-500.0,0.00013698,2]
[422134960,1778611841000,-500.0,0.00013698,2]
[422134908,1778611841000,-500.0,0.00013698,2]
[422134958,1778611841000,-500.0,0.00013698,2]
[422134998,1778611841000,-151.0,0.00013699,2]
[422134910,1778611841000,-500.0,0.00013698,2]
[422134911,1778611841000,-500.0,0.00013698,2]
[422134913,1778611841000,-565.44255009,0.00013698,2]
[422134915,1778611841000,-500.0,0.00013698,2]
[422134917,1778611841000,-500.0,0.00013698,2]
[422134920,1778611841000,-500.0,0.00013698,2]
[422134919,1778611841000,-500.0,0.00013698,2]
[422134922,1778611841000,-500.0,0.00013698,2]
[422134926,1778611841000,-500.0,0.00013698,2]
[422134924,1778611841000,-500.0,0.00013698,2]
[422134930,1778611841000,-533.54989741,0.00013698,2]
[422134937,1778611841000,-500.0,0.00013698,2]
[422134939,1778611841000,-500.0,0.00013698,2]
[422134938,1778611841000,-500.0,0.00013698,2]
[422134929,1778611841000,-500.0,0.00013698,2]
[422134933,1778611841000,-330.37437133,0.00013698,2]
[422134935,1778611841000,-500.0,0.00013698,2]
[422134940,1778611841000,-508.03542635,0.00013698,2]
[422134952,1778611841000,-500.0,0.00013698,2]
[422134942,1778611841000,-500.0,0.00013698,2]
[422134941,1778611841000,-500.0,0.00013698,2]
[422134954,1778611841000,-500.0,0.00013698,2]
[422134956,1778611841000,-500.0,0.00013698,2]
[422134943,1778611841000,-500.0,0.00013698,2]
[422134946,1778611841000,-429.05238357,0.00013698,2]
[422135000,1778611841000,-151.0,0.00013699,2]
[422134972,1778611841000,-500.0,0.00013698,2]
[422135016,1778611841000,-14378.19667551,0.00013796,2]
[422135085,1778611841000,-151.0,0.0001425,2]
[422135075,1778611841000,-1040.902296,0.0001425,2]
[422135087,1778611841000,-151.0,0.0001425,2]
[422135073,1778611841000,-1040.902296,0.0001425,2]
[422135089,1778611841000,-163.92,0.00014256,2]
[422135091,1778611841000,-579.31519183,0.0001426,2]
[422135093,1778611841000,-433.0,0.00014299,2]
[422135095,1778611841000,-3418.89799795,0.0001435,2]
[422135097,1778611841000,-165.502,0.0001435,2]
[422135102,1778611841000,-166.66,0.00014384,2]
[422135099,1778611841000,-2611.633,0.00014369,2]
[422135106,1778611841000,-750.94,0.00014439,2]
[422135108,1778611841000,-167.82,0.00014496,2]
[422135112,1778611841000,-339.49857134,0.00014542,2]
[422135104,1778611841000,-2000.0,0.000144,2]
[422135110,1778611841000,-223.21,0.0001454,2]
[422135115,1778611841000,-155.0,0.00014592,2]
[422135117,1778611841000,-3418.89799795,0.00014625,2]
[422135126,1778611841000,-10409.34236162,0.00014631,2]
[422135131,1778611841000,-3292.0,0.00014887,2]
[422135128,1778611841000,-5517.5964378,0.000147,2]
[422135135,1778611841000,-200.0,0.000149,5]
[422135133,1778611841000,-10409.34236162,0.000149,2]
[422135137,1778611841000,-3418.89799795,0.000149,2]
[422135139,1778611841000,-166.14,0.00014978,2]
[422135069,1778611841000,-151.0,0.0001425,2]
[422135078,1778611841000,-1040.902296,0.0001425,2]
[422135143,1778611841000,-963456.54650471,0.00015,2]
[422135071,1778611841000,-151.0,0.0001425,2]
[422135080,1778611841000,-1040.902296,0.0001425,2]
[422135019,1778611841000,-3418.89799795,0.000138,2]
[422135021,1778611841000,-166.66,0.00013836,2]
[422135023,1778611841000,-223.21,0.00013908,2]
[422135036,1778611841000,-500.0,0.00013986,2]
[422135027,1778611841000,-34959.57603961,0.00013979,2]
[422135025,1778611841000,-166.66,0.00013973,2]
[422135038,1778611841000,-250.0,0.00014,2]
[422135030,1778611841000,-151.0,0.00013984,2]
[422135034,1778611841000,-2000.0,0.00013984,2]
[422135032,1778611841000,-151.0,0.00013984,2]
[422135040,1778611841000,-3418.89799795,0.00014075,2]
[422135044,1778611841000,-166.66,0.0001411,2]
[422135012,1778611841000,-500.0,0.00013712,2]
[422135043,1778611841000,-700.0,0.00014079,2]
[422135082,1778611841000,-151.0,0.0001425,2]
[422135067,1778611841000,-274151.19869049,0.0001425,2]
[422135066,1778611841000,-166.66,0.00014247,2]
[422135060,1778611841000,-472.348,0.00014225,2]
[422135049,1778611841000,-1353.0,0.00014225,2]
[422135064,1778611841000,-151.0,0.00014241,2]
[422135055,1778611841000,-1269.0,0.00014225,2]
[422135141,1778611841000,-226.39869894,0.0001499,2]
[422135057,1778611841000,-1223.0,0.00014225,2]
[422135053,1778611841000,-625.0,0.00014225,2]
[422135051,1778611841000,-926.0,0.00014225,2]
[422135046,1778611841000,-350.0,0.00014188,2]
[422135062,1778611841000,-6050.0,0.00014225,2]
[422135186,1778611842000,-448.648598,0.00015068,2]
[422135188,1778611842000,-448.648598,0.00015068,2]
[422135190,1778611842000,-448.648598,0.00015068,2]
[422135189,1778611842000,-448.648598,0.00015068,2]
[422135181,1778611842000,-448.648598,0.00015068,2]
[422135183,1778611842000,-448.648598,0.00015068,2]
[422135185,1778611842000,-448.648598,0.00015068,2]
[422135184,1778611842000,-448.648598,0.00015068,2]
[422135180,1778611842000,-448.648598,0.00015068,2]
[422135182,1778611842000,-448.648598,0.00015068,2]
[422135187,1778611842000,-448.648598,0.00015068,2]
[422135199,1778611842000,-448.648593,0.00015068,2]
[422135195,1778611842000,-448.648598,0.00015068,2]
[422135197,1778611842000,-448.648598,0.00015068,2]
[422135193,1778611842000,-448.648598,0.00015068,2]
[422135208,1778611842000,-265.28,0.00015213,2]
[422135191,1778611842000,-448.648598,0.00015068,2]
[422135201,1778611842000,-570.12,0.00015068,2]
[422135203,1778611842000,-223.21,0.00015173,2]
[422135206,1778611842000,-265.29,0.00015213,2]
[422135212,1778611842000,-1517.64,0.000153,2]
[422135210,1778611842000,-251.14,0.00015213,2]
[422135214,1778611842000,-9999.99,0.0001531,2]
[422135216,1778611842000,-12154.2,0.0001531,2]
[422135220,1778611842000,-6056.41,0.0001531,2]
[422135192,1778611842000,-448.648598,0.00015068,2]
[422135178,1778611842000,-448.648598,0.00015068,2]
[422135171,1778611842000,-173.093613,0.00015,2]
[422135176,1778611842000,-265.28,0.00015062,2]
[422135224,1778611842000,-999.99,0.0001531,2]
[422135147,1778611842000,-792397.90494105,0.00015,2]
[422135150,1778611842000,-606.6000014,0.00015,2]
[422135153,1778611842000,-21042.40124996,0.00015,2]
[422135156,1778611842000,-20410.93765589,0.00015,2]
[422135157,1778611842000,-572753.48753649,0.00015,2]
[422135145,1778611842000,-160.0,0.00015,14]
[422135155,1778611842000,-393.51575662,0.00015,2]
[422135159,1778611842000,-1040.902296,0.00015,2]
[422135158,1778611842000,-207.41478,0.00015,2]
[422135161,1778611842000,-1040.902296,0.00015,2]
[422135162,1778611842000,-1040.902296,0.00015,2]
[422135160,1778611842000,-1040.902296,0.00015,2]
[422135163,1778611842000,-1040.902296,0.00015,2]
[422135166,1778611842000,-1040.902288,0.00015,2]
[422135167,1778611842000,-151.0,0.00015,2]
[422135164,1778611842000,-1040.902296,0.00015,2]
[422135168,1778611842000,-229.754449,0.00015,2]
[422135169,1778611842000,-151.0,0.00015,2]
[422135173,1778611842000,-271.16,0.0001505,2]
[422135172,1778611842000,-155.0,0.00015006,2]
[422135175,1778611842000,-265.29,0.00015055,2]
[422135177,1778611842000,-448.648598,0.00015068,2]
[422135179,1778611842000,-448.648598,0.00015068,2]
[422135174,1778611842000,-271.16,0.0001505,2]
[422135170,1778611842000,-151.0,0.00015,2]
[422135165,1778611842000,-1040.902296,0.00015,2]
[422135222,1778611842000,-4999.99,0.0001531,2]
[422135226,1778611842000,-61414.44,0.0001531,2]
[422135294,1778611842000,-2005.9555727,0.00015572,2]
[422135299,1778611842000,-1232.0,0.00015675,2]
[422135296,1778611842000,-736.0,0.00015587,2]
[422135301,1778611842000,-649.34,0.000157,2]
[422135303,1778611842000,-1538.0,0.00015758,2]
[422135306,1778611842000,-1538.0,0.00015758,2]
[422135308,1778611842000,-1535.0,0.00015758,2]
[422135312,1778611842000,-500.0,0.00015781,2]
[422135310,1778611842000,-3831.07026751,0.00015761,2]
[422135317,1778611842000,-223.21,0.00015805,2]
[422135320,1778611842000,-160.0,0.0001585,2]
[422135324,1778611842000,-155.0,0.00015918,2]
[422135329,1778611842000,-2712.58219026,0.00015958,2]
[422135327,1778611842000,-8831.61586254,0.00015947,2]
[422135322,1778611842000,-3771.55231938,0.00015869,2]
[422135331,1778611842000,-4564.90672933,0.00015982,2]
[422135333,1778611842000,-8973.73620785,0.00015989,2]
[422135342,1778611842000,-5000.01,0.00016066,2]
[422135337,1778611842000,-300.0,0.00016,2]
[422135340,1778611842000,-4898.35858655,0.00016014,2]
[422135345,1778611842000,-5000.01,0.00016101,2]
[422135335,1778611842000,-10000.01,0.0001599,2]
[422135350,1778611842000,-2080.17592889,0.0001612,2]
[422135347,1778611842000,-2800.50485724,0.0001611,15]
[422135218,1778611842000,-299.99,0.0001531,2]
[422135283,1778611842000,-151.0,0.00015572,2]
[422135292,1778611842000,-151.0,0.00015572,2]
[422135315,1778611842000,-10000.01,0.000158,2]
[422135287,1778611842000,-151.0,0.00015572,2]
[422135290,1778611842000,-151.0,0.00015572,2]
[422135238,1778611842000,-1215.06,0.0001531,2]
[422135241,1778611842000,-163.92,0.00015343,2]
[422135232,1778611842000,-4513.87,0.0001531,2]
[422135230,1778611842000,-150.99,0.0001531,2]
[422135236,1778611842000,-9999.99,0.0001531,2]
[422135234,1778611842000,-9999.99,0.0001531,2]
[422135245,1778611842000,-1236.6538261,0.000155,2]
[422135247,1778611842000,-1648.1,0.0001551,2]
[422135249,1778611842000,-151.0,0.00015572,2]
[422135252,1778611842000,-151.0,0.00015572,2]
[422135243,1778611842000,-2000.0,0.00015383,2]
[422135258,1778611842000,-151.0,0.00015572,2]
[422135228,1778611842000,-1324.75,0.0001531,2]
[422135261,1778611842000,-151.0,0.00015572,2]
[422135254,1778611842000,-151.0,0.00015572,2]
[422135281,1778611842000,-151.0,0.00015572,2]
[422135270,1778611842000,-151.0,0.00015572,2]
[422135279,1778611842000,-151.0,0.00015572,2]
[422135277,1778611842000,-151.0,0.00015572,2]
[422135275,1778611842000,-151.0,0.00015572,2]
[422135285,1778611842000,-151.0,0.00015572,2]
[422135265,1778611842000,-151.0,0.00015572,2]
[422135267,1778611842000,-151.0,0.00015572,2]
[422135263,1778611842000,-151.0,0.00015572,2]
[422135256,1778611842000,-151.0,0.00015572,2]
[422135272,1778611842000,-151.0,0.00015572,2]
[422135434,1778611843000,-1154.057842,0.00016438,2]
[422135436,1778611843000,-1154.057842,0.00016438,2]
[422135430,1778611843000,-1154.057842,0.00016438,2]
[422135414,1778611843000,-1154.057842,0.00016438,2]
[422135421,1778611843000,-1154.057842,0.00016438,2]
[422135428,1778611843000,-1154.057842,0.00016438,2]
[422135426,1778611843000,-1154.057842,0.00016438,2]
[422135424,1778611843000,-1154.057842,0.00016438,2]
[422135416,1778611843000,-1154.057842,0.00016438,2]
[422135438,1778611843000,-1154.05784648,0.00016438,2]
[422135432,1778611843000,-1154.057842,0.00016438,2]
[422135443,1778611843000,-987.0,0.00016497,2]
[422135445,1778611843000,-2165.09040933,0.000165,2]
[422135446,1778611843000,-761.89,0.000165,2]
[422135448,1778611843000,-290.47951751,0.000165,2]
[422135450,1778611843000,-2157.14243826,0.00016668,2]
[422135452,1778611843000,-184.49,0.00016712,2]
[422135458,1778611843000,-1252.0,0.00016995,2]
[422135456,1778611843000,-329.21967144,0.00016917,2]
[422135454,1778611843000,-2000.0,0.00016781,2]
[422135462,1778611843000,-734.89463289,0.00017048,2]
[422135460,1778611843000,-164.97,0.00017046,2]
[422135465,1778611843000,-223.21,0.00017069,2]
[422135467,1778611843000,-309.0,0.00017204,2]
[422135417,1778611843000,-1154.057842,0.00016438,2]
[422135441,1778611843000,-570.12,0.00016438,2]
[422135415,1778611843000,-1154.057842,0.00016438,2]
[422135482,1778611843000,-417.0,0.00017225,2]
[422135412,1778611843000,-1154.057842,0.00016438,2]
[422135359,1778611843000,-5040.93025853,0.0001627,2]
[422135352,1778611843000,-214.86625456,0.00016174,2]
[422135362,1778611843000,-314.0,0.000163,2]
[422135366,1778611843000,-150.0,0.00016351,2]
[422135354,1778611843000,-208.2157166,0.00016174,2]
[422135356,1778611843000,-168.94,0.00016215,2]
[422135369,1778611843000,-150.432,0.00016351,2]
[422135372,1778611843000,-150.565,0.00016351,2]
[422135377,1778611843000,-250.0,0.00016351,2]
[422135375,1778611843000,-150.0,0.00016351,2]
[422135379,1778611843000,-165.61,0.00016351,2]
[422135382,1778611843000,-243.653,0.00016351,2]
[422135413,1778611843000,-1154.057842,0.00016438,2]
[422135384,1778611843000,-251.13004021,0.00016367,2]
[422135387,1778611843000,-4609.0,0.00016376,2]
[422135395,1778611843000,-223.21,0.00016437,2]
[422135392,1778611843000,-1000.0,0.000164,2]
[422135399,1778611843000,-367.56472386,0.00016438,2]
[422135401,1778611843000,-189.052952,0.00016438,2]
[422135406,1778611843000,-237.60589375,0.00016438,2]
[422135403,1778611843000,-153.0,0.00016438,2]
[422135408,1778611843000,-1154.057842,0.00016438,2]
[422135419,1778611843000,-1154.057842,0.00016438,2]
[422135410,1778611843000,-1154.057842,0.00016438,2]
[422135411,1778611843000,-1154.057842,0.00016438,2]
[422135409,1778611843000,-1154.057842,0.00016438,2]
[422135389,1778611843000,-308.0,0.000164,2]
[422135479,1778611843000,-1223.0,0.00017225,2]
[422135538,1778611843000,-476.96,0.00018624,2]
[422135484,1778611843000,-6050.0,0.00017225,2]
[422135532,1778611843000,-476.97,0.00018624,2]
[422135525,1778611843000,-150.0,0.00018424,2]
[422135539,1778611843000,-476.96,0.00018624,2]
[422135583,1778611843000,-476.96,0.00018967,2]
[422135541,1778611843000,-493.49,0.0001872,2]
[422135543,1778611843000,-1902.32,0.0001872,2]
[422135545,1778611843000,-4625.03,0.0001872,2]
[422135547,1778611843000,-2921.4,0.0001872,2]
[422135551,1778611843000,-476.97,0.00018795,2]
[422135549,1778611843000,-202.5,0.0001872,2]
[422135556,1778611843000,-473.9,0.00018795,2]
[422135564,1778611843000,-300.0,0.00018952,2]
[422135536,1778611843000,-473.9,0.00018624,2]
[422135558,1778611843000,-476.96,0.00018795,2]
[422135554,1778611843000,-476.96,0.00018795,2]
[422135562,1778611843000,-300.0,0.00018952,2]
[422135566,1778611843000,-300.0,0.00018952,2]
[422135576,1778611843000,-300.0,0.00018952,2]
[422135571,1778611843000,-300.0,0.00018952,2]
[422135569,1778611843000,-300.0,0.00018952,2]
[422135568,1778611843000,-300.0,0.00018952,2]
[422135573,1778611843000,-300.0,0.00018952,2]
[422135579,1778611843000,-435.0,0.00018952,2]
[422135587,1778611843000,-476.96,0.00018967,2]
[422135585,1778611843000,-473.9,0.00018967,2]
[422135469,1778611843000,-2236.95670848,0.00017216,2]
[422135560,1778611843000,-476.96,0.00018795,2]
[422135526,1778611843000,-269.0,0.00018424,2]
[422135581,1778611843000,-476.97,0.00018967,2]
[422135523,1778611843000,-292.0,0.00018424,2]
[422135534,1778611843000,-476.96,0.00018624,2]
[422135471,1778611843000,-1353.0,0.00017225,2]
[422135486,1778611843000,-182.26,0.00017497,2]
[422135477,1778611843000,-1269.0,0.00017225,2]
[422135473,1778611843000,-926.0,0.00017225,2]
[422135488,1778611843000,-155.0,0.00017507,2]
[422135492,1778611843000,-182.73,0.000178,2]
[422135490,1778611843000,-2319.72410669,0.00017764,2]
[422135496,1778611843000,-200.5,0.000178,2]
[422135494,1778611843000,-373.84,0.000178,2]
[422135506,1778611843000,-350.0,0.00018,2]
[422135504,1778611843000,-1044.07566109,0.00018,2]
[422135508,1778611843000,-6453.0,0.00018014,2]
[422135475,1778611843000,-625.0,0.00017225,2]
[422135499,1778611843000,-1237.39950744,0.0001789,2]
[422135510,1778611843000,-150.0,0.00018276,2]
[422135530,1778611843000,-155.0,0.00018571,2]
[422135521,1778611843000,-2001.32726763,0.00018312,2]
[422135519,1778611843000,-298.0,0.00018276,2]
[422135517,1778611843000,-150.0,0.00018276,2]
[422135528,1778611843000,-2129.0,0.00018524,2]
[422135513,1778611843000,-150.0,0.00018276,2]
[422135501,1778611843000,-649.34,0.000179,2]
[422135512,1778611843000,-150.0,0.00018276,2]
[422135497,1778611843000,-752.0,0.00017845,2]
[422135502,1778611843000,-1205.66112139,0.00018,2]
[422135515,1778611843000,-150.0,0.00018276,2]
[422135673,1778611844000,-500.0,0.00019178,2]
[422135667,1778611844000,-500.0,0.00019178,2]
[422135663,1778611844000,-500.0,0.00019178,2]
[422135658,1778611844000,-500.0,0.00019178,2]
[422135656,1778611844000,-500.0,0.00019178,2]
[422135652,1778611844000,-500.0,0.00019178,2]
[422135654,1778611844000,-500.0,0.00019178,2]
[422135669,1778611844000,-500.0,0.00019178,2]
[422135650,1778611844000,-500.0,0.00019178,2]
[422135648,1778611844000,-500.0,0.00019178,2]
[422135641,1778611844000,-500.0,0.00019178,2]
[422135677,1778611844000,-500.0,0.00019178,2]
[422135679,1778611844000,-500.0,0.00019178,2]
[422135675,1778611844000,-500.0,0.00019178,2]
[422135665,1778611844000,-500.0,0.00019178,2]
[422135681,1778611844000,-500.0,0.00019178,2]
[422135685,1778611844000,-500.0,0.00019178,2]
[422135687,1778611844000,-500.0,0.00019178,2]